bitfinex/quotes_ETHUSD_20251118
["timestamp","ask_amount","ask_price","bid_price","bid_amount"]
[1763478279532,1.067,3042.7,3042.0,0.8952119]
[1763478279699,1.067,3042.7,3042.1,0.4976]
[1763478279888,1.067,3042.7,3042.2,0.03287094]
[1763478280086,1.067,3042.7,3042.3,0.4976]
[1763478280502,0.302,3042.6,3042.3,0.4976]
[1763478280685,0.86805776,3045.1,3042.3,0.4976]
[1763478280888,1.67278807,3045.0,3042.5,3.28677074]
[1763478281085,0.30378807,3044.9,3042.6,0.36922747]
[1763478281291,0.30378807,3044.9,3042.5,0.405504]
[1763478281720,0.30378807,3044.9,3042.6,0.4976]
[1763478282216,0.1911,3044.8,3042.6,0.4976]
[1763478282416,0.30378807,3044.9,3042.6,0.4976]
[1763478282617,0.1911,3044.8,3042.6,0.4976]
[1763478282939,0.405504,3044.7,3042.6,0.4976]
[1763478283093,0.49488807,3044.8,3042.6,0.4976]
[1763478283295,0.90039207,3044.7,3042.6,0.4976]
[1763478283548,0.405504,3044.5,3042.6,0.4976]
[1763478283695,0.405504,3044.5,3042.3,0.4976]
[1763478283696,0.405504,3044.3,3042.3,0.4976]
[1763478283894,0.70929207,3044.3,3042.3,0.4976]
[1763478284096,0.30378807,3044.2,3042.3,0.4976]
[1763478284320,0.30378807,3044.3,3042.4,0.03286878]
[1763478284631,0.30378807,3044.3,3041.9,6.76592996]
[1763478284632,0.30378807,3044.3,3042.5,0.4976]
[1763478284834,0.302,3044.4,3042.6,0.405504]
[1763478285034,0.302,3044.4,3042.8,0.405504]
[1763478285539,0.30378807,3044.9,3042.9,0.67860966]
[1763478285540,0.30298807,3044.9,3042.9,0.67860966]
[1763478285739,1.2581,3045.0,3042.9,0.4976]
[1763478285900,1.2581,3045.0,3043.0,0.4976]
[1763478286235,0.1911,3044.9,3043.0,0.4976]
[1763478286624,0.86805776,3045.0,3043.0,0.4976]
[1763478286794,1.368,3044.9,3043.0,0.4976]
[1763478287196,1.368,3044.9,3043.0,3.78382554]
[1763478287495,1.368,3044.9,3043.1,4.16210525]
[1763478287696,1.067,3044.9,3044.8,0.1911]
[1763478288131,1.368,3044.9,3044.8,0.6887]
[1763478288333,1.368,3044.9,3044.3,0.4976]
[1763478288632,0.002,3044.4,3044.3,0.4976]
[1763478288834,0.002,3044.4,3043.9,0.4976]
[1763478289128,0.301,3044.3,3043.9,0.4976]
[1763478290734,0.002,3044.4,3043.9,0.4976]
[1763478291232,0.002,3044.4,3044.0,0.405504]
[1763478291395,1.067,3044.9,3044.0,0.405504]
[1763478291396,1.067,3044.9,3044.2,0.405504]
[1763478291599,1.2533014,3046.7,3044.2,0.405504]
[1763478291600,0.0955,3046.7,3044.8,0.1911]
[1763478291797,1.067,3045.8,3044.8,0.1911]
[1763478292000,0.301,3045.7,3044.9,0.4976]
[1763478293724,0.301,3045.7,3044.9,3.78174521]
[1763478293901,0.301,3045.7,3045.0,0.89488452]
[1763478294098,0.301,3045.7,3045.1,0.4976]
[1763478298021,1.067,3045.8,3045.1,0.4976]
[1763478298247,1.067,3045.8,3044.9,0.4976]
[1763478298634,0.0967,3047.1,3044.9,0.4976]
[1763478298946,1.067,3045.8,3044.9,0.4976]
[1763478299145,0.3,3045.7,3044.9,0.4976]
[1763478300322,0.3,3045.7,3044.8,0.1911]
[1763478300525,0.0967,3047.1,3044.9,0.5304418]
[1763478300526,0.2812,3047.1,3044.9,0.5304418]
[1763478300730,1.067,3046.1,3044.9,0.4976]
[1763478301088,0.0012,3047.1,3045.0,13.13628896]
[1763478301286,0.0012,3047.1,3046.0,0.1911]
[1763478301287,0.3,3047.0,3046.0,0.1911]
[1763478301580,0.3,3047.0,3045.2,0.405504]
[1763478301743,1.367,3046.9,3045.2,0.93594256]
[1763478301939,1.367,3046.9,3045.2,0.903104]
[1763478302157,1.367,3046.9,3046.8,0.1911]
[1763478302376,1.367,3046.9,3045.8,0.405504]
[1763478302377,1.367,3046.9,3046.4,0.1911]
[1763478302558,1.367,3046.9,3046.0,0.1911]
[1763478302758,1.367,3046.9,3045.1,0.4976]
[1763478302940,1.367,3046.9,3045.2,0.4976]
[1763478303134,0.0012,3047.1,3045.3,0.03283748]
[1763478303336,0.0012,3047.1,3045.5,5.77423223]
[1763478303337,1.067,3047.0,3045.5,5.77423223]
[1763478303579,1.067,3047.0,3045.6,1.31249664]
[1763478303780,1.067,3047.0,3046.9,0.1911]
[1763478303980,1.367,3047.0,3046.9,0.1911]
[1763478304300,1.367,3047.0,3046.9,0.6887]
[1763478304888,0.3,3047.0,3046.3,0.4976]
[1763478305556,0.389,3047.0,3045.4,0.4976]
[1763478305883,0.389,3047.0,3045.5,0.53043533]
[1763478306054,0.389,3047.0,3045.5,0.4976]
[1763478306386,1.066,3047.0,3045.7,0.405504]
[1763478306583,0.3,3046.9,3045.7,0.405504]
[1763478306784,0.3,3046.9,3045.8,0.4716]
[1763478307295,0.0012,3047.1,3046.8,0.185]
[1763478307450,0.3,3046.8,3045.9,0.405504]
[1763478307647,0.3,3046.8,3045.7,3.28330224]
[1763478307648,0.3,3046.8,3046.0,0.185]
[1763478307845,0.3,3046.8,3044.9,3.7557801]
[1763478308087,0.0012,3047.1,3045.0,0.90699264]
[1763478308088,1.366,3046.7,3045.0,0.90699264]
[1763478308384,1.066,3046.7,3045.4,2.47885933]
[1763478308589,0.0012,3047.1,3046.7,0.405504]
[1763478308746,0.0012,3047.1,3046.8,0.4716]
[1763478308747,0.0004,3047.1,3046.8,0.4716]
[1763478309157,0.0004,3047.1,3046.9,0.405504]
[1763478309360,0.0004,3047.1,3046.9,1.31249664]
[1763478309582,1.066,3048.8,3047.5,0.405504]
[1763478309767,1.066,3048.8,3048.7,0.185]
[1763478310279,1.366,3048.8,3047.4,0.185]
[1763478310476,0.1889,3049.5,3047.6,0.405504]
[1763478310660,1.066,3049.4,3047.6,0.405504]
[1763478310994,0.3,3049.3,3048.1,1.31249664]
[1763478311148,0.3,3049.3,3048.4,0.405504]
[1763478311594,0.3,3049.3,3048.5,0.4716]
[1763478311792,0.90699264,3051.3,3048.6,0.405504]
[1763478311993,1.066,3050.0,3048.6,0.405504]
[1763478312202,0.3,3049.9,3048.7,0.4716]
[1763478312567,0.90699264,3051.2,3048.7,0.4716]
[1763478312568,0.1889,3051.0,3048.8,0.405504]
[1763478312770,0.1889,3051.0,3048.2,0.90699264]
[1763478312771,0.1889,3051.6,3049.0,0.405504]
[1763478313107,6.93203363,3052.0,3048.9,0.4716]
[1763478313108,1.5549,3051.0,3048.9,0.4716]
[1763478313607,1.366,3050.9,3049.0,1.31249664]
[1763478314111,1.366,3050.9,3049.1,0.4716]
[1763478314608,1.366,3050.8,3049.2,0.405504]
[1763478314982,1.066,3050.8,3049.4,0.405504]
[1763478315170,0.3,3050.7,3049.6,0.405504]
[1763478315374,0.3,3050.7,3049.5,0.90699264]
[1763478315375,0.3,3050.7,3049.5,0.4716]
[1763478315571,0.3,3050.7,3047.8,1.16636269]
[1763478315572,0.3,3050.7,3049.6,0.4716]
[1763478316018,0.089,3050.9,3049.6,0.4716]
[1763478316174,0.86805776,3053.1,3049.6,0.4716]
[1763478316175,0.1889,3052.6,3050.8,0.185]
[1763478316375,1.066,3052.4,3050.9,0.405504]
[1763478316585,1.066,3052.4,3050.8,0.185]
[1763478316586,0.299,3052.3,3050.8,0.185]
[1763478316786,0.1889,3053.3,3050.9,0.405504]
[1763478316985,0.299,3052.2,3051.1,0.405504]
[1763478317212,0.299,3052.2,3051.3,0.405504]
[1763478317526,0.299,3052.1,3050.8,0.185]
[1763478317676,0.299,3052.1,3051.5,0.405504]
[1763478317878,0.299,3052.1,3051.6,0.4716]
[1763478318275,0.0999,3053.0,3051.6,0.4716]
[1763478318276,0.0999,3053.0,3051.7,0.405504]
[1763478318478,1.065,3053.3,3051.7,0.405504]
[1763478318716,0.3,3052.7,3051.9,0.405504]
[1763478319084,0.3,3052.7,3052.6,0.185]
[1763478319297,0.3,3052.7,3052.6,0.6566]
[1763478319484,0.3,3052.7,3050.8,0.185]
[1763478319485,0.3,3052.7,3052.2,0.185]
[1763478319684,0.4557,3052.6,3050.8,0.185]
[1763478319885,0.1938,3053.0,3050.8,3.46282876]
[1763478320112,0.089,3055.0,3051.1,0.90699264]
[1763478320113,0.299,3052.7,3051.1,0.90699264]
[1763478320614,0.4557,3053.7,3051.1,0.90699264]
[1763478320812,0.299,3052.7,3051.1,0.90699264]
[1763478321177,1.365,3053.4,3051.2,0.90699264]
[1763478321178,0.3,3053.4,3051.2,0.90699264]
[1763478321716,0.299,3052.7,3051.3,0.869804]
[1763478321915,0.3,3053.4,3052.7,0.1908]
[1763478322080,0.3,3053.4,3052.7,0.596304]
[1763478322276,0.301,3052.8,3052.7,1.060604]
[1763478322477,0.7588,3052.8,3051.5,0.4643]
[1763478322699,0.299,3052.7,3051.5,0.4643]
[1763478323443,0.002,3052.8,3051.7,0.405504]
[1763478323743,0.002,3052.8,3051.6,0.90699264]
[1763478323744,0.1939,3051.6,3050.1,0.4643]
[1763478323905,0.299,3051.5,3050.1,0.4643]
[1763478324103,0.7568,3051.5,3049.8,0.185]
[1763478324319,0.299,3051.5,3049.9,0.4643]
[1763478324636,0.7568,3051.5,3049.9,0.4643]
[1763478324836,0.4578,3052.1,3050.0,0.03278688]
[1763478325011,0.4578,3052.1,3049.9,3.74309602]
[1763478325012,1.065,3051.8,3050.1,0.37758829]
[1763478325203,1.065,3051.8,3050.3,1.31249664]
[1763478325398,0.299,3051.7,3050.3,1.31249664]
[1763478325597,0.299,3051.7,3050.5,0.405504]
[1763478326142,0.299,3051.7,3050.2,0.4643]
[1763478326375,0.4578,3052.1,3050.3,0.4643]
[1763478326512,0.299,3051.6,3050.3,0.4643]
[1763478326721,0.299,3051.6,3048.9,0.4643]
[1763478326907,0.299,3051.6,3048.4,2.28896061]
[1763478326908,5.77423223,3050.5,3048.6,1.16636269]
[1763478327100,1.74479264,3050.4,3048.5,0.4643]
[1763478327345,0.38,3050.4,3048.5,0.4643]
[1763478327525,0.4578,3050.9,3048.6,0.03280194]
[1763478327735,1.065,3050.3,3048.7,1.37129264]
[1763478327908,1.065,3050.3,3048.8,0.03279979]
[1763478328109,1.065,3050.3,3048.8,0.869804]
[1763478328313,1.065,3050.3,3048.9,0.4643]
[1763478328551,1.065,3050.3,3047.6,2.28896061]
[1763478328552,0.4578,3050.2,3047.9,0.1908]
[1763478328701,0.4578,3050.2,3047.7,0.4643]
[1763478328702,0.405504,3050.1,3047.7,0.4643]
[1763478328901,1.31249664,3049.8,3046.7,1.35716269]
[1763478329214,0.52753741,3050.5,3046.7,1.35716269]
[1763478329215,0.4578,3050.1,3046.8,0.90699264]
[1763478329414,6.23203223,3050.4,3046.9,0.4643]
[1763478329615,0.3,3050.0,3047.0,0.405504]
[1763478329817,0.4578,3049.9,3047.2,0.405504]
[1763478330238,0.4578,3049.9,3047.4,6.17973623]
[1763478330539,0.4578,3049.9,3047.3,0.4643]
[1763478331528,0.08,3050.5,3048.1,1.31249664]
[1763478331529,1.065,3049.8,3048.1,1.31249664]
[1763478331701,0.3,3049.7,3048.1,1.31249664]
[1763478331898,0.3,3049.7,3048.2,0.1975]
[1763478332139,0.3,3049.7,3048.4,0.405504]
[1763478332340,0.4873,3050.3,3048.4,0.405504]
[1763478332644,1.065,3050.8,3050.2,0.1975]
[1763478332939,0.3,3050.7,3050.3,0.405504]
[1763478333140,0.3,3050.7,3049.8,0.603004]
[1763478333442,0.3,3050.6,3049.9,0.883604]
[1763478333760,1.065,3051.4,3049.4,0.1975]
[1763478333761,0.3,3050.5,3049.4,0.1975]
[1763478333980,0.3,3050.5,3049.5,0.4781]
[1763478334160,0.0901,3051.9,3049.6,0.405504]
[1763478334363,1.8531,3051.8,3049.6,0.405504]
[1763478334669,1.8531,3051.8,3049.4,0.1975]
[1763478334872,0.90699264,3051.3,3048.4,0.4781]
[1763478335071,0.405504,3050.6,3047.8,0.4781]
[1763478335243,0.9765,3050.5,3047.8,0.4781]
[1763478335433,0.9765,3050.5,3047.9,0.1975]
[1763478335434,0.90699264,3050.1,3047.9,0.1975]
[1763478335837,1.5531,3050.0,3048.0,0.4781]
[1763478336070,1.8531,3050.0,3048.0,0.4781]
[1763478336272,1.8531,3050.0,3047.3,0.4957]
[1763478336273,0.4624,3049.9,3047.3,0.4957]
[1763478336589,0.90699264,3049.5,3047.3,0.4957]
[1763478336880,0.4624,3049.9,3047.3,0.4957]
[1763478337169,1.065,3049.4,3047.3,0.4957]
[1763478337382,0.4624,3049.8,3047.4,0.90699264]
[1763478337565,1.065,3049.3,3047.6,0.405504]
[1763478337733,0.3,3049.2,3047.6,0.405504]
[1763478337935,0.3,3049.2,3048.0,1.31249664]
[1763478338159,0.3,3049.2,3049.1,0.600804]
[1763478338330,0.0901,3051.9,3049.2,0.405504]
[1763478338536,0.4624,3051.7,3049.4,0.405504]
[1763478338780,0.0901,3051.9,3049.6,0.405504]
[1763478339098,0.002,3052.8,3049.6,0.405504]
[1763478339099,1.065,3052.4,3050.5,1.31249664]
[1763478339235,1.065,3052.4,3049.6,1.70522781]
[1763478339236,0.3,3052.3,3051.1,0.405504]
[1763478339439,0.3,3052.3,3051.1,1.31249664]
[1763478339652,0.002,3052.8,3051.7,1.31249664]
[1763478339956,0.3,3052.7,3052.3,1.31249664]
[1763478340186,0.002,3053.5,3052.3,0.405504]
[1763478340335,0.3,3053.1,3052.5,0.405504]
[1763478340535,0.3,3053.1,3052.6,0.4957]
[1763478340788,0.002,3053.5,3052.7,0.405504]
[1763478340789,0.3,3053.0,3052.7,0.405504]
[1763478340936,1.065,3054.8,3052.7,0.405504]
[1763478341137,1.065,3054.8,3053.2,0.405504]
[1763478341386,0.4624,3054.7,3052.9,0.405504]
[1763478341596,0.4624,3054.7,3052.8,0.4957]
[1763478341780,0.4624,3054.7,3052.9,0.405504]
[1763478341966,1.5274,3054.8,3052.9,0.405504]
[1763478342298,1.5274,3054.8,3052.4,0.1953]
[1763478342299,1.365,3054.7,3053.1,0.405504]
[1763478342499,0.3,3054.6,3053.1,0.405504]
[1763478342656,0.3,3054.6,3052.5,6.55200654]
[1763478342657,0.3,3054.6,3053.3,0.405504]
[1763478342859,0.4624,3055.1,3053.3,0.405504]
[1763478343167,0.3,3054.5,3053.2,0.4957]
[1763478343371,1.064,3054.4,3052.6,0.4957]
[1763478343596,1.364,3054.3,3052.6,0.4957]
[1763478344098,1.8264,3054.2,3052.6,0.4957]
[1763478344256,0.4624,3054.2,3052.6,0.4957]
[1763478344687,1.8264,3054.1,3052.0,0.4957]
[1763478344903,0.4624,3054.0,3051.4,0.4957]
[1763478345060,1.36939264,3054.0,3051.4,0.4957]
[1763478345268,1.2768014,3054.3,3051.5,0.90699264]
[1763478345269,2.0083,3053.9,3051.5,0.90699264]
[1763478345600,0.20083,3053.8,3051.7,0.405504]
[1763478345893,1.8264,3053.8,3051.7,0.405504]
[1763478346096,1.8264,3053.8,3051.2,0.1953]
[1763478346295,0.1819,3053.9,3051.2,0.691]
[1763478346296,0.7624,3053.7,3051.2,0.691]
[1763478346511,0.4624,3053.6,3051.3,0.4957]
[1763478346699,0.4624,3053.6,3051.4,0.03277184]
[1763478346903,0.4624,3053.6,3051.5,0.4957]
[1763478347215,0.119,3054.3,3051.9,0.405504]
[1763478347372,0.1819,3054.9,3052.4,1.31249664]
[1763478347776,1.8264,3054.8,3052.6,0.405504]
[1763478348009,1.8264,3054.8,3052.8,0.405504]
[1763478348010,0.4624,3054.8,3052.8,0.405504]
[1763478348218,1.364,3054.7,3053.0,0.405504]
[1763478348373,0.3,3054.6,3053.0,0.405504]
[1763478348722,0.1819,3055.3,3052.7,0.1953]
[1763478348725,1.364,3054.5,3053.1,0.4957]
[1763478348871,0.4624,3055.2,3053.2,0.405504]
[1763478349069,0.4624,3055.2,3053.4,0.405504]
[1763478349275,1.364,3055.1,3053.6,0.405504]
[1763478349671,0.002,3053.9,3053.5,0.4957]
[1763478349875,0.3,3053.8,3053.1,0.405504]
[1763478350115,0.002,3053.9,3053.1,0.405504]
[1763478350411,0.3,3053.8,3053.1,0.4957]
[1763478350571,0.002,3053.9,3053.2,0.405504]
[1763478350773,0.002,3053.9,3053.4,0.405504]
[1763478350982,0.3,3053.8,3053.4,0.405504]
[1763478351180,0.3,3053.8,3053.0,0.4957]
[1763478351422,0.3,3053.8,3051.8,1.16636269]
[1763478351710,0.002,3053.9,3052.9,0.1953]
[1763478351878,0.3,3053.7,3052.5,0.1953]
[1763478352213,0.002,3053.9,3052.5,0.1953]
[1763478352214,0.002,3053.9,3052.7,0.405504]
[1763478352711,0.3,3053.8,3052.9,0.405504]
[1763478352955,0.002,3053.9,3053.8,0.600804]
[1763478353262,0.302,3053.9,3053.8,0.405504]
[1763478353686,0.7644,3053.9,3051.9,0.4957]
[1763478353881,0.1819,3053.2,3051.9,0.4957]
[1763478354162,0.6443,3053.2,3051.5,0.4957]
[1763478354367,0.1819,3053.8,3052.0,0.4957]
[1763478354573,0.4624,3053.5,3052.0,0.4957]
[1763478354723,1.364,3053.4,3052.0,0.4957]
[1763478355225,0.4624,3053.3,3051.6,0.90699264]
[1763478355430,0.4624,3053.3,3051.5,6.55408343]
[1763478355431,0.1819,3053.8,3052.1,0.1953]
[1763478355744,1.364,3053.7,3052.2,0.405504]
[1763478355937,0.3,3053.6,3052.2,0.901204]
[1763478356146,1.364,3053.6,3052.2,0.901204]
[1763478356579,1.8264,3053.6,3052.2,0.901204]
[1763478356781,0.1811,3053.8,3052.4,0.405504]
[1763478356988,1.064,3053.7,3052.4,0.405504]
[1763478357159,0.002,3053.9,3052.2,0.405504]
[1763478357359,0.002,3053.9,3052.5,0.405504]
[1763478357360,0.299,3053.8,3052.5,0.405504]
[1763478357558,0.299,3053.7,3052.5,0.405504]
[1763478357869,0.4644,3053.9,3052.1,0.1953]
[1763478358043,1.363,3053.8,3052.2,1.40269264]
[1763478358245,0.4624,3053.8,3052.3,0.405504]
[1763478358570,0.002,3053.9,3052.3,0.901204]
[1763478358770,0.002,3053.9,3052.5,0.405504]
[1763478358971,0.299,3053.8,3052.5,0.405504]
[1763478359270,0.299,3053.8,3052.5,0.4957]
[1763478359472,0.299,3053.8,3052.6,0.405504]
[1763478359975,0.299,3053.8,3052.1,3.47167678]
[1763478359976,0.4624,3053.8,3052.1,0.1953]
[1763478360327,0.4624,3053.8,3051.5,0.4957]
[1763478360328,1.363,3053.7,3051.5,0.4957]
[1763478360448,0.4624,3053.8,3051.6,0.16620627]
[1763478360650,0.002,3053.9,3051.2,0.1953]
[1763478360651,0.1182,3053.6,3051.2,0.1953]
[1763478360964,0.299,3053.5,3051.4,1.16636269]
[1763478361147,0.299,3053.5,3051.6,0.405504]
[1763478361354,0.002,3053.9,3051.8,8.3035799]
[1763478361559,0.299,3053.8,3052.1,0.405504]
[1763478361751,0.299,3053.8,3052.3,0.405504]
[1763478362056,0.002,3053.9,3052.3,0.405504]
[1763478362259,0.299,3053.8,3052.4,0.4957]
[1763478362478,0.002,3053.9,3052.6,0.405504]
[1763478362652,0.299,3053.7,3052.6,0.405504]
[1763478362853,0.002,3053.9,3053.8,0.600804]
[1763478363053,0.002,3053.9,3053.8,1.096504]
[1763478363289,0.002,3054.3,3054.1,1.31249664]
[1763478363461,0.002,3054.3,3054.2,1.19163251]
[1763478363667,0.002,3054.3,3054.2,1.68733251]
[1763478363849,6.99108326,3057.5,3054.5,1.31249664]
[1763478363854,1.064,3057.5,3054.5,1.31249664]
[1763478364069,1.064,3057.5,3054.2,1.19163251]
[1763478364070,0.01311683,3058.5,3055.5,1.31249664]
[1763478364361,0.01311683,3058.5,3054.7,0.405504]
[1763478364362,0.01311683,3058.5,3056.7,1.31249664]
[1763478364546,0.299,3058.4,3056.7,1.31249664]
[1763478364755,0.7614,3058.4,3056.5,0.405504]
[1763478365052,0.7614,3058.4,3055.7,0.4957]
[1763478365362,0.7614,3058.4,3055.6,1.02565799]
[1763478365363,0.299,3058.4,3056.0,0.901204]
[1763478365549,0.299,3058.4,3056.2,0.405504]
[1763478365749,0.299,3058.4,3056.6,0.405504]
[1763478365987,0.299,3058.4,3056.5,6.99108326]
[1763478365988,0.299,3058.4,3056.8,0.405504]
[1763478366415,0.4936,3058.3,3056.1,1.11646456]
[1763478366596,0.01311683,3058.5,3057.0,0.405504]
[1763478366887,0.01311683,3058.5,3058.4,0.405504]
[1763478367103,0.29901683,3058.5,3058.4,0.405504]
[1763478367260,0.3,3058.7,3058.4,0.894604]
[1763478367468,0.3,3058.7,3058.5,0.90699264]
[1763478367678,0.3,3058.7,3058.6,0.405504]
[1763478367905,0.3,3058.7,3058.1,6.99108326]
[1763478367906,0.3,3058.7,3057.6,0.4891]
[1763478368108,0.3,3058.7,3058.6,0.1891]
[1763478368633,0.1965,3061.2,3058.7,0.405504]
[1763478368910,0.3,3059.3,3058.7,0.405504]
[1763478369126,1.063,3061.4,3059.1,1.31249664]
[1763478369417,0.7936,3062.1,3060.0,7.84844434]
[1763478369623,1.063,3062.0,3060.0,4.58047049]
[1763478369771,1.063,3062.0,3059.3,3.26872073]
[1763478369772,0.4936,3062.0,3059.7,0.405504]
[1763478369971,0.4936,3061.9,3059.7,0.405504]
[1763478370202,0.4936,3061.9,3059.5,7.39658726]
[1763478370405,1.363,3061.8,3059.9,0.405504]
[1763478370606,0.3,3062.1,3060.8,0.405504]
[1763478370808,0.3,3062.0,3061.0,0.405504]
[1763478371169,0.3,3062.1,3061.0,0.405504]
[1763478371373,0.3,3062.1,3061.2,1.31249664]
[1763478371608,0.3,3062.1,3062.0,0.0977]
[1763478371850,0.3,3062.1,3062.0,0.5868]
[1763478372357,0.6,3062.1,3062.0,0.5868]
[1763478372664,0.002,3063.1,3062.0,0.5868]
[1763478372865,0.3,3063.0,3062.0,0.0977]
[1763478373164,0.3,3063.0,3061.2,0.86374621]
[1763478373165,0.7936,3063.0,3061.5,0.4891]
[1763478373327,0.002,3063.1,3061.5,0.74801833]
[1763478373528,1.062,3062.9,3061.6,0.1891]
[1763478373859,0.002,3063.1,3061.7,0.405504]
[1763478374014,1.362,3063.0,3061.2,0.4891]
[1763478374214,0.4956,3063.1,3061.2,0.4891]
[1763478374451,0.1965,3062.9,3060.8,6.99108326]
[1763478374659,0.1965,3062.9,3059.6,0.88035799]
[1763478374660,0.1965,3061.3,3059.6,0.83035799]
[1763478374956,1.363,3062.8,3060.0,6.99108326]
[1763478374957,1.062,3062.2,3060.0,6.99108326]
[1763478375161,1.062,3062.2,3059.5,9.9945845]
[1763478375162,0.301,3062.1,3060.7,0.90699264]
[1763478375316,0.301,3062.1,3060.8,0.405504]
[1763478375515,0.4936,3062.7,3060.8,0.894604]
[1763478375718,1.363,3062.6,3060.3,6.99108326]
[1763478375917,0.18566,3062.5,3060.4,1.02588369]
[1763478376118,1.062,3062.4,3060.4,2.42197633]
[1763478376319,1.363,3062.3,3060.1,0.77770833]
[1763478376548,0.4936,3062.3,3059.5,7.18018326]
[1763478376861,0.1965,3062.9,3059.5,7.18018326]
[1763478376862,1.8566,3062.2,3059.6,0.4891]
[1763478377158,1.364,3062.1,3059.8,0.405504]
[1763478377467,0.4936,3062.8,3060.9,6.99108326]
[1763478377620,0.002,3063.1,3061.6,1.31249664]
[1763478377969,0.302,3063.0,3062.3,0.405504]
[1763478378164,0.302,3063.0,3062.0,0.405504]
[1763478378460,1.363,3062.9,3061.8,0.405504]
[1763478378643,1.363,3062.8,3061.8,0.405504]
[1763478378858,0.4956,3063.1,3061.8,0.405504]
[1763478379050,0.4956,3063.1,3062.0,0.405504]
[1763478379051,0.302,3063.0,3062.0,0.405504]
[1763478379261,0.002,3063.1,3062.1,6.53146532]
[1763478379577,0.002,3063.1,3062.2,1.31249664]
[1763478379578,0.0012,3063.1,3062.2,1.31249664]
[1763478379734,0.302,3063.0,3062.2,1.31249664]
[1763478379930,0.0012,3063.1,3062.4,0.405504]
[1763478380145,0.302,3063.0,3062.2,0.405504]
[1763478380373,0.1965,3062.9,3061.1,7.48018326]
[1763478380585,0.1965,3062.9,3060.4,0.4891]
[1763478380867,0.1965,3062.9,3058.5,0.85427119]
[1763478380868,1.8566,3062.8,3060.3,3.45674237]
[1763478381067,0.0012,3063.1,3060.9,6.99108326]
[1763478381283,0.0012,3063.1,3061.8,1.31249664]
[1763478381431,0.302,3063.0,3062.0,0.405504]
[1763478381629,0.0012,3063.1,3062.0,0.405504]
[1763478381872,1.061,3063.0,3061.8,1.31249664]
[1763478382039,0.302,3062.9,3062.0,0.405504]
[1763478382235,1.061,3063.0,3061.3,0.4973]
[1763478382438,0.7723,3062.9,3061.4,0.90699264]
[1763478382635,0.0012,3063.1,3061.6,0.405504]
[1763478382937,1.8333,3063.0,3061.5,0.4973]
[1763478383135,2.01675,3063.0,3061.2,3.26668811]
[1763478383346,1.8333,3062.9,3061.3,0.4973]
[1763478383547,1.363,3062.9,3061.6,0.90699264]
[1763478383751,1.363,3062.9,3061.7,0.405504]
[1763478383971,1.363,3062.8,3061.7,0.405504]
[1763478384172,0.302,3062.7,3061.7,0.902804]
[1763478384473,0.7723,3062.7,3060.9,6.99108326]
[1763478384673,0.7723,3062.7,3060.4,0.34567424]
[1763478384876,0.4703,3062.6,3059.5,3.45752031]
[1763478385080,0.4703,3062.6,3059.7,0.90699264]
[1763478385247,0.4703,3062.6,3059.8,0.03268187]
[1763478385451,0.4703,3062.6,3059.8,1.40429264]
[1763478385651,1.363,3062.5,3059.6,0.39548203]
[1763478385854,1.363,3062.5,3059.5,0.1891]
[1763478385855,0.707504,3062.4,3059.5,3.45760792]
[1763478386177,0.707504,3062.4,3059.5,0.1891]
[1763478386178,1.768504,3062.4,3059.5,0.1891]
[1763478386476,0.0012,3063.1,3059.1,0.4973]
[1763478386477,0.4703,3062.3,3059.1,10.30409617]
[1763478386651,0.4703,3062.3,3059.4,6.99108326]
[1763478386851,0.4703,3062.3,3060.1,0.405504]
[1763478387076,1.363,3062.2,3060.3,0.405504]
[1763478387280,0.405504,3062.1,3059.1,3.26892557]
[1763478387491,0.405504,3062.1,3058.6,0.1891]
[1763478387492,0.405504,3061.7,3058.6,0.1891]
[1763478387654,0.405504,3061.5,3057.9,3.27018291]
[1763478387840,1.31249664,3061.1,3058.0,0.46217541]
[1763478388042,0.6595,3061.4,3058.0,0.46217541]
[1763478388043,0.405504,3060.9,3058.1,0.03270004]
[1763478388259,0.405504,3060.9,3058.0,0.4973]
[1763478388438,1.8333,3060.8,3058.1,0.03270004]
[1763478388662,0.4703,3060.8,3058.0,0.4973]
[1763478388862,0.405504,3061.3,3058.0,0.4973]
[1763478388863,0.4703,3060.7,3058.0,0.4973]
[1763478389064,0.4703,3060.7,3057.8,13.08130028]
[1763478389065,0.4703,3060.7,3057.8,0.85427119]
[1763478389066,0.405504,3060.5,3057.8,0.85427119]
[1763478389264,0.1768504,3060.4,3058.0,3.27011118]
[1763478389565,0.4703,3060.6,3058.0,6.54022236]
[1763478389879,1.363,3060.5,3059.4,0.001]
[1763478390091,0.1892,3059.5,3059.4,0.001]
[1763478390383,1.8333,3060.4,3059.4,0.001]
[1763478390384,0.4703,3060.4,3059.4,0.001]
[1763478390582,1.061,3060.3,3059.4,0.001]
[1763478390787,0.1892,3059.5,3059.4,0.001]
[1763478390944,0.1892,3059.5,3059.0,0.001]
[1763478391140,0.7723,3059.4,3059.0,0.001]
[1763478391384,1.363,3059.3,3058.7,0.001]
[1763478391540,1.8333,3059.3,3058.7,0.001]
[1763478391749,1.8333,3059.2,3058.7,0.001]
[1763478391949,0.302,3059.1,3058.7,0.001]